{"text_format":"1","workbook":"xlsx","n_sheets":8,"sheets":["DATOS","EVAL-TIPO-A","EVAL-TIPO-B","EVAL-TIPO-C","CARGA_HORARIA","Hoja1","Hoja2","Hoja3"],"not_rendered":{"charts":0,"images":0,"macros":1,"external_links":0,"defined_names":38,"comments":0,"pivot_tables":0},"unopened":[],"bounds":{"document_bytes":16777216,"sheet_cells":100000,"rows_first":2000,"rows_last":500,"rows_between":2000,"halvings":0,"cell_chars":16384,"cell_head_chars":4096},"cells_cut":0,"cells_raw":0,"read":"whole","date_system":"1900"}

{"sheet":"DATOS","index":0,"n_rows":21,"n_cols":15,"rows_kept":21,"cut":false,"hidden":true,"merged":[]}
[]
[]
["MEDICINA_ENF_NUTRICION_Y_TECNOLOGIA_MEDICA","ODONTOLOGÍA","CIENCIAS_FARMACEUTICAS_Y_BIOQUÍMICAS","CIENCIAS_PURAS_Y_NATURALES","INGENIERIA","AGRONOMÍA","CIENCIAS_GEOLÓGICAS","ARQUITECTURA_ARTES_DISEÑO_Y_URBANISMO","TECNOLOGÍA","CIENCIAS_SOCIALES","DERECHO_Y_CIENCIAS_POLÍTICAS","HUMANIDADES_Y_CIENCIAS_DE_LA_EDUCACIÓN","CIENCIAS_ECONÓMICAS_Y_FINANCIERAS","POST_GRADO_MULTIDISCIPLINARIO","PROGRAMAS_CENTRALES_ACADEMICOS"]
["Carrera de Enfermería","Carrera de Odontología","Carrera de Bioquímica","Carrera de Biología","Carrera Ingeniería Civil","Carrera de Ing. en Producción y Comercialización Agropecuaria","Carrera de Geografía","Carrera de Arquitectura","Carrera de Aeronáutica","Carrera de Antropología y Arqueología","Carrera de Derecho","Dirección y Coordinación Humanidades","Carrera de Administración de Empresas","Dirección y Coordinación Post Grado","Centro Psicopedagógico y de Investigación en Educación Superior"]
["Dirección y Coordinación Medicina","Dirección y Coordinación Odontología","Dirección y Coordinación Cs. Farmac. y Bioquim.","Dirección y Coordinación Cs. Puras","Dirección y Coordinación Ingeniería","Dirección y Coordinación Agronomía","Dirección y Coordinación Cs. Geológicas","Dirección y Coordinación Arquitectura","Dirección y Coordinación Tecnología","Dirección y Coordinación Cs. Sociales","Dirección y Coordinación Derecho","Carrera de Ciencias de la Educación","Dirección y Coordinación Cs. Económicas"]
["Carrera de Medicina",null,"Carrera de Química Farmacéutica","Carrera de Estadística","Carrera Ingeniería Eléctrica","Carrera de Ingeniería Agronómica","Carrera de Ciencias Geología y Medio Ambiente","Carrera de Artes","Carrera de Construcción Civil","Carrera de Ciencias de la Comunicación Social","Carrera de Ciencia Política y Gestión Pública","Carrera de Bibliotecologia y Ciencias de la Información","Carrera de Contaduría Pública"]
["Carrera de Nutrición",null,"Instituto de Investigaciones Farmaco Bioquímicas","Carrera de Física","Carrera Ingeniería Electrónica","Instituto de Inv. Agropecuarias","Instituto de Investigaciones Geológicas","Instituto de Inv. en Arquitectura y Artes","Carrera de Electricidad","Carrera de Sociología","Instituto de Inv. y Consultorio Jurídico","Carrera de Filosofía","Carrera de Economía"]
["Carrera Tecnología Médica",null,"Instituto de Serv. de Lab. de Diagnostico e Inv. en Salud","Carrera de Informática","Carrera Ingeniería Industrial",null,null,null,"Carrera de Electrómecanica","Carrera de Trabajo Social","Instituto de Inv. en Ciencia Política","Carrera de Historia","Instituto de Inv. y Capacitación en Cs. Administrativas (IICA)"]
["Departamento de Ciencias Funcionales",null,null,"Carrera de Matemáticas","Carrera Ingeniería Mecánica",null,null,null,"Carrera de Electrónica y Telecomunicaciones","Instituto de Inv. de Antropología y Arqueología",null,"Carrera de Lingüística e Idiomas","Instituto de Investigación en Cs. Económicas"]
["Departamento de Ciencias Morfológicas",null,null,"Carrera de Ciencias Químicas","Carrera Ingeniería Metalúrgica",null,null,null,"Carrera de Mecánica Automotriz","Instituto de Inv. Sociológicas",null,"Carrera de Literatura","Instituto de Inv. de Cs. Contables, Financ. y Aud."]
["Departamento de Cirugía",null,null,"Instituto de Investigaciones Físicas","Carrera Ingeniería Petrolera",null,null,null,"Carrera de Mecánica Industrial",null,null,"Carrera de Psicología"]
["Departamento de Medicina y Salud Mental",null,null,"Instituto de Investigaciones en Ecología","Carrera Ingeniería Química",null,null,null,"Carrera de Química Industrial",null,null,"Carrera de Turismo"]
["Departamento de Patología",null,null,"Instituto de Investigaciones Químicas","Instituto de Electrónica Aplicada",null,null,null,"Carrera de Topografía y Geodesia",null,null,"Instituto de Estudios Bolivianos"]
["Departamento de Salud Pública",null,null,null,"Instituto de Ensayo de Materiales",null,null,null,"Materias Básicas",null,null,"Archivo Histórico"]
["Departamento Materno Infantil",null,null,null,"Instituto de Hidráulica e Hidrología",null,null,null,"Instituto de Investigaciones y Aplicaciones Tecnológicas"]
["Instituto Boliviano de Biología de la Altura",null,null,null,"Instituto de Ingeniería Sanitaria"]
["Instituto de Genética Humana",null,null,null,"Instituto de Investigaciones Industriales"]
["Instituto de Inv. en Salud y Desarrollo (IINSAD)",null,null,null,"Instituto de Investigaciones Mecánicas"]
[null,null,null,null,"Instituto de Investigaciones Metalúrgicas"]
[null,null,null,null,"Instituto del Transporte y Vías de Comunicación"]
[null,null,null,null,"Instituto de Inv. y Desarrollo de Proc. Químicos"]

{"sheet":"EVAL-TIPO-A","index":1,"n_rows":116,"n_cols":5,"rows_kept":116,"cut":false,"hidden":false,"merged":[[1,0,1,4],[2,0,2,4],[3,0,3,4],[9,2,9,4],[10,2,10,4],[16,1,16,4],[17,1,17,4],[18,1,18,4],[13,3,13,4],[12,2,12,4],[14,0,14,4],[51,0,52,0],[53,1,53,3],[55,1,55,3],[55,0,56,0],[56,1,56,3],[57,1,57,3],[32,1,32,3],[38,0,39,0],[53,0,54,0],[42,1,42,3],[40,0,41,0],[44,1,44,3],[45,1,45,3],[39,1,39,3],[41,1,41,3],[52,1,52,3],[54,1,54,3],[46,1,46,3],[47,1,47,3],[48,1,48,3],[35,1,35,3],[30,0,32,0],[57,0,58,0],[30,1,30,3],[59,0,60,0],[58,1,58,3],[60,1,60,3],[0,0,0,3],[23,1,23,3],[9,0,9,1],[10,0,10,1],[12,0,12,1],[13,0,13,1],[15,0,15,4],[22,1,22,3],[22,0,24,0],[6,1,6,3],[21,1,21,3],[24,1,24,3],[8,0,8,4],[36,0,37,0],[31,1,31,3],[33,1,33,3],[37,1,37,3],[19,1,19,4],[20,1,20,4],[29,1,29,3],[25,1,25,3],[75,0,76,0],[80,0,85,0],[83,1,83,3],[85,1,85,3],[84,1,84,3],[82,1,82,3],[73,1,73,3],[75,1,75,3],[76,1,76,3],[77,1,77,3],[74,1,74,3],[73,0,74,0],[66,1,66,3],[64,4,65,4],[71,1,71,3],[67,0,68,0],[69,0,70,0],[68,1,68,3],[69,1,69,3],[70,1,70,3],[64,0,66,0],[71,0,72,0],[72,1,72,3],[26,1,26,3],[27,1,27,3],[28,1,28,3],[51,1,51,3],[61,1,61,3],[36,1,36,3],[38,1,38,3],[40,1,40,3],[50,1,50,3],[59,1,59,3],[63,1,63,3],[64,1,64,3],[65,1,65,3],[67,1,67,3],[86,1,86,3],[111,3,111,4],[115,3,115,4],[108,3,108,4],[112,3,112,4],[79,1,79,3],[80,1,80,3],[81,1,81,3],[80,4,84,4],[93,4,94,4],[96,4,97,4],[99,1,99,3],[91,1,91,3],[96,1,96,3],[98,1,98,3],[93,1,93,3],[95,1,95,3],[94,1,94,3],[97,1,97,3],[92,1,92,3],[116,3,116,4],[107,0,107,1],[111,0,111,1],[115,0,115,1],[108,0,108,2],[112,0,112,2],[116,0,116,2],[86,0,89,0],[90,1,90,3],[90,4,91,4],[90,0,92,0],[107,3,107,4],[101,1,101,3],[86,4,88,4],[89,1,89,3],[87,1,87,3],[88,1,88,3],[93,0,95,0],[96,0,98,0]]}
["ANEXO 1"]
["UNIVERSIDAD MAYOR DE SAN ANDRÉS"]
["CONSEJO ACADÉMICO UNIVERSITARIO"]
["FORMULARIO DE EVALUACIÓN DOCENTE"]
[null,null,"GESTIÓN A SER EVALUADA:"]
[]
[null,"EVALUACIÓN DOCENTE TIPO: A"]
[]
["*    LLENAR SOLO LOS ESPACIOS SOMBREADOS"]
["FACULTAD: "]
["CARRERA:"]
[]
["DOCENTE:"]
["CARGA HORARIA:",null,null,"  Horas"]
["NOTA: Cuando el puntaje exceda del establecido para el rubro correspondiente, el formulario regulará a la nota máxima determinada."]
["ASIGNATURA(S)"]
["1)"]
["2)"]
["3)"]
["4)"]
["5)"]
[1,"LABOR DOCENTE                            "]
["1.1","ADMINISTRACIÓN DE LA CÁTEDRA:                  "]
[null,"Evalúa el Director de Carrera de acuerdo con el formulario aprobado en el CAU sobre la base del Reglamento de la Evaluación Docente, aprobado mediante Resolución de HCU  (Ver Anexo 2)       "]
[null,"Puntaje Máximo:  A: 7.5  ",null,null,{"$f":"IF(E24<=7.5,+E24,7.5)","v":0}]
["1.2","DEDICACIÓN A LA DOCENCIA:                         "]
["1.2.1","Asignatura  (carga horaria de 32 horas/mes)                                          c/u  2 puntos"]
["1.2.2","Por ser profesor tutor de un trabajo de tesis, tesina, trabajo dirigido, proyecto de grado, presentado y aprobado                                                            c/u  5 puntos"]
["1.2.3","Por ser tribunal de grado en cualquiera de sus modalidades                    c/u 3 puntos"]
[null,"Puntaje Máximo:  A: 15 ",null,null,{"$f":"IF((+E27+E28+E29)<=15,(+E27+E28+E29),15)","v":0}]
["1.3","EVALUACIÓN ESTUDIANTIL                   "]
[null,"Mediante procedimiento aprobado.   (Ver anexo 3)                                                               "]
[null,"Puntaje Máximo:  A: 7.5",null,null,{"$f":"IF(E32<=7.5,+E32,7.5)","v":0}]
[null," (1)     LABOR DOCENTE   TOTAL (Máximo  30)                                  ",null,null,{"$f":"IF((+E25+E30+E33)<=30,(+E25+E30+E33),30)","v":0}]
[]
[2,"LABOR DE INVESTIGACIÓN        "]
["2.1","Proyectos de investigación presentados y aprobados por Consejo de Carrera y Honorable Consejo Facultativo, según informe."]
[null,"Puntaje Máximo:  A:  10",null,null,{"$f":"IF(E37<=10,+E37,10)","v":0}]
["2.2","Participación en proyectos de investigación  aprobado por Consejo de Carrera y Honorable Consejo Facultativo."]
[null,"Puntaje Máximo:  A:  5",null,null,{"$f":"IF(E39<=5,+E39,5)","v":0}]
["2.3","Evaluación del avance o conclusión del proyecto, según informe del Director del Instituto de Investigación.                                                                                                              "]
[null," Puntaje Máximo:  A: 35",null,null,{"$f":"IF(E41<=35,+E41,35)","v":0}]
[null,"                       (2)   LABOR DE INVESTIGACIÓN   TOTAL (Máximo 50)",null,null,{"$f":"IF((+E38+E40+E42)<=50,(+E38+E40+E42),50)","v":0}]
[]
[3,"LABOR DE EXTENSIÓN o INTERACCIÓN  "]
["3.1","Proyectos presentados y ejecutados según avance y conclusión y aprobados por          Consejo de Carrera.                                                            Puntaje Máximo:  A: 10"]
["3.2","Participación en proyectos de extensión, según informe aprobado por el Consejo de Carrera.                                                                             Puntaje Máximo:   A: 5"]
["3.3","Proyección social de la labor docente, organización de viajes de estudio, participación en Ferias como expositores o jurados, participación en oferta de servicios.\n                                                                                         Puntaje Máximo:   A:  5"]
[null,"                            (3)    LABOR DE EXTENSIÓN   TOTAL (Máximo 10)",null,null,{"$f":"IF((+E46+E47+E48)<=10,(+E46+E47+E48),10)","v":0}]
[]
[4,"PRODUCCIÓN INTELECTUAL"]
["4.1","Por libro editado y/o publicado.                                            "]
[null,"Puntaje Máximo:   A:  30",null,null,{"$f":"IF(E52<=30,+E52,30)","v":0}]
["4.2","Por guías de curso completo o folletos editados  2 puntos c/u"]
[null,"Puntaje Máximo:   A:  10",null,null,{"$f":"IF(E54<=10,+E54,10)","v":0}]
["4.3","Por artículo científico publicado.                                    "]
[null," Puntaje Máximo:   A:   5",null,null,{"$f":"IF(E56<=5,+E56,5)","v":0}]
["4.4","Otras publicaciones relacionadas con la Carrera.             "]
[null,"Puntaje Máximo:   A:   1",null,null,{"$f":"IF(E58<=1,+E58,1)","v":0}]
["4.5","Otras producciones.                                                   "]
[null,"Puntaje Máximo:    A:  4",null,null,{"$f":"IF(E60<=4,+E60,4)","v":0}]
[null,"                    (4)  PRODUCCIÓN INTELECTUAL   TOTAL (Máximo 50)",null,null,{"$f":"IF((+E53+E55+E57+E59+E61)<=50,(+E53+E55+E57+E59+E61),50)","v":0}]
[]
[5,"VIDA UNIVERSITARIA"]
["5.1","Por ser Jefe de Área, Jefes de Departamento, Jefes de División"]
[null,"NOTA: El Rector, Vicerrector, Secretario General, DAF, Decanos, Vicedecanos, Directores de Carrera y Directores de Institutos, tienen el máximo puntaje de evaluación.                                                                                          "]
[null," Puntaje Máximo:   A:  10",null,null,{"$f":"IF(E65<=10,+E65,10)","v":0}]
["5.2","Por ser representante de base ante: \n    - Consejo de Carrera:    2 puntos  \n    - Consejo Facultativo:   3 puntos          \n    - Consejo Universitario: 5 puntos"]
[null," Puntaje Máximo:   A:  5",null,null,{"$f":"IF(E68<=5,+E68,5)","v":0}]
["5.3","Por integrar en calidad de docente comisiones universitarias."]
[null,"Puntaje Máximo:   A:  3",null,null,{"$f":"IF(E70<=3,+E70,3)","v":0}]
["5.4","Por ser miembro de uno o más tribunales de exámen de competencia o jurado       electoral.                                                                        "]
[null,"Puntaje Máximo:   A:   3 ",null,null,{"$f":"IF(E72<=3,+E72,3)","v":0}]
[5.5,"Por asistencia regular a reuniones docente - estudiantil, seminarios, simposios y otros eventos organizados por la Facultad y la Carrera, según  informe del Director de Carrera.                                                                                 "]
[null,"Puntaje Máximo:   A:    4",null,null,{"$f":"IF(E74<=4,+E74,4)","v":0}]
[5.6,"Por otro tipo de participación en actividades de co-gobierno."]
[null,"Puntaje Máximo:   A:    5",null,null,{"$f":"IF(E76<=5,+E76,5)","v":0}]
[null,"                                 (5)  VIDA UNIVERSITARIA   TOTAL(Máximo 20)",null,null,{"$f":"IF((+E67+E69+E71+E73+E75+E77)<=20,(+E67+E69+E71+E73+E75+E77),20)","v":0}]
[]
[6,"CURSOS Y CONFERENCIAS"]
["6.1","Por Título de Postgrado :"]
[null,"  - Doctor (Ph.D.)        10 puntos"]
[null,"  - Magíster                  8 puntos"]
[null,"  - Especialista             6 puntos                                                 "]
[null,"NOTA: EL TÍTULO OBTENIDO TIENE VALOR PUNTUABLE PERMANENTE                                                                                         "]
[null,"Puntaje Máximo:   A:   10",null,null,{"$f":"IF(E81<=10,+E81,10)","v":0}]
["6.2","Por la participación en cursos de actualización con certificado de aprobación:"]
[null,"  - De 40 a 60 horas de carga horaria:           5 puntos."]
[null,"  - Mayor de 60 horas de carga horaria:       10 puntos.          "]
[null,"Puntaje Máximo:   A:   10 ",null,null,{"$f":"IF(E87<=10,+E87,10)","v":0}]
["6.3","Por asistencia a cursos de actualización sin el requisito de la aprobación "]
[null,"Cada uno  1 punto                                                                 "]
[null,"Puntaje Máximo:    A:    2",null,null,{"$f":"IF(E91<=2,+E91,2)","v":0}]
["6.4","Por dirección y/o dictado de cursos extra-cátedra, según informe y duración. "]
[null,"Cada uno  5 puntos"]
[null,"Puntaje Máximo:    A:  10",null,null,{"$f":"IF(E94<=10,+E94,10)","v":0}]
["6.5","Por conferencias dictadas o ponencias en simposios o congresos. "]
[null,"Cada uno 3 puntos"]
[null,"Puntaje Máximo:     A:   9",null,null,{"$f":"IF(E97<=9,+E97,9)","v":0}]
[null,"                         (6)  CURSOS Y CONFERENCIAS  TOTAL(Máximo 20)",null,null,{"$f":"IF((+E86+E90+E93+E96+E99)<=20,(+E86+E90+E93+E96+E99),20)","v":0}]
[]
[null,"                PUNTAJE TOTAL DE EVALUACIÓN (1)+(2)+(3)+(4)+(5)+(6)",null,null,{"$f":"+E34+E43+E49+E62+E78+E100","v":0}]
[]
["Comisión de Evaluación Docente:"]
[]
[]
[]
["Docente:",null,null,"Universitario:"]
[]
[]
[]
["Docente:",null,null,"Universitario:"]
[]
[]
[]
["Docente:",null,null,"Universitario:"]

{"sheet":"EVAL-TIPO-B","index":2,"n_rows":112,"n_cols":5,"rows_kept":112,"cut":false,"hidden":false,"merged":[[48,1,48,3],[42,1,42,3],[47,1,47,3],[41,0,42,0],[108,0,108,2],[108,3,108,4],[49,1,49,3],[46,0,47,0],[48,0,49,0],[50,1,50,3],[51,1,51,3],[52,1,52,3],[68,0,70,0],[50,0,51,0],[43,1,43,3],[68,4,69,4],[76,1,76,3],[75,0,76,0],[78,1,78,3],[77,0,78,0],[54,1,54,3],[55,1,55,3],[57,1,57,3],[73,1,73,3],[111,0,111,1],[111,3,111,4],[112,0,112,2],[112,3,112,4],[89,0,90,0],[91,0,92,0],[93,0,94,0],[103,0,103,1],[103,3,103,4],[104,0,104,2],[104,3,104,4],[107,0,107,1],[107,3,107,4],[56,1,56,3],[55,0,56,0],[60,1,60,3],[62,1,62,3],[64,1,64,3],[59,0,60,0],[61,0,62,0],[63,0,64,0],[57,0,58,0],[70,1,70,3],[68,1,68,3],[69,1,69,3],[65,1,65,3],[67,1,67,3],[71,0,72,0],[73,0,74,0],[71,1,71,3],[72,1,72,3],[84,4,85,4],[87,0,88,0],[89,1,89,3],[97,1,97,3],[91,1,91,3],[92,1,92,3],[93,1,93,3],[94,1,94,3],[95,1,95,3],[90,1,90,3],[85,1,85,3],[87,1,87,3],[88,1,88,3],[83,1,83,3],[84,1,84,3],[86,1,86,3],[20,1,20,4],[16,1,16,4],[17,1,17,4],[18,1,18,4],[19,1,19,4],[15,0,15,4],[44,1,44,3],[45,1,45,3],[30,1,30,3],[79,0,80,0],[74,1,74,3],[75,1,75,3],[77,1,77,3],[79,1,79,3],[80,1,80,3],[81,1,81,3],[58,1,58,3],[59,1,59,3],[61,1,61,3],[63,1,63,3],[84,0,86,0],[23,1,23,3],[24,1,24,3],[25,1,25,3],[29,0,30,0],[32,1,32,3],[31,1,31,3],[31,0,33,0],[12,2,12,4],[12,0,12,1],[13,0,13,1],[13,3,13,4],[23,0,25,0],[22,1,22,3],[6,1,6,3],[8,0,8,4],[9,0,9,1],[9,2,9,4],[10,0,10,1],[10,2,10,4],[21,0,21,4],[4,0,4,2],[0,0,0,3],[1,0,1,4],[2,0,2,4],[3,0,3,4],[36,1,36,3],[39,0,40,0],[46,1,46,3],[26,1,26,3],[27,1,27,3],[28,1,28,3],[29,1,29,3],[33,1,33,3],[34,1,34,3],[35,1,35,3],[39,1,39,3],[40,1,40,3],[41,1,41,3],[38,1,38,3],[37,1,37,3],[37,0,38,0]]}
["ANEXO 1"]
["UNIVERSIDAD MAYOR DE SAN ANDRÉS"]
["CONSEJO ACADÉMICO UNIVERSITARIO"]
["FORMULARIO DE EVALUACIÓN DOCENTE"]
["GESTIÓN A SER EVALUADA:"]
[]
[null,"EVALUACIÓN DOCENTE TIPO: B"]
[]
["*    LLENAR SOLO LOS ESPACIOS SOMBREADOS"]
["FACULTAD: "]
["CARRERA:"]
[]
["DOCENTE:"]
["CARGA HORARIA:",null,null,"  Horas"]
[]
["ASIGNATURA(S)"]
["1)"]
["2)"]
["3)"]
["4)"]
["5)"]
["NOTA: Cuando el puntaje exceda del establecido para el rubro correspondiente, el formulario regulará a la nota máxima determinada."]
[1,"LABOR DOCENTE                            "]
["1.1","ADMINISTRACIÓN DE LA CÁTEDRA:                           "]
[null,"Evalúa el Director de Carrera de acuerdo con el formulario aprobado en el CAU sobre la base del Reglamento de la Evaluación Docente aprobado mediante Resolución de HCU  (Ver Anexo 2)       "]
[null,"Puntaje Máximo:  B: 12.5                                                     ",null,null,{"$f":"IF(E25<=12.5,+E25,12.5)","v":0}]
["1.2","DEDICACIÓN A LA DOCENCIA:    "]
["1.2.1","Asignatura  (carga horaria de 32 horas/mes)                                           c/u   2 puntos"]
["1.2.2","Por ser profesor tutor de un trabajo de tesis, tesina, trabajo dirigido, proyecto de grado, presentado y aprobado.                                                               c/u  5 puntos"]
["1.2.3","Por ser tribunal de grado en cualquiera de sus modalidades                      c/u 3 puntos"]
[null,"Puntaje Máximo:  B: 15                                                       ",null,null,{"$f":"IF((E28+E29+E30)<=15,(E28+E29+E30),15)","v":0}]
["1.3","EVALUACIÓN ESTUDIANTIL    "]
[null,"Mediante procedimiento aprobado.                                           (Ver anexo 3)                                                               "]
[null," Puntaje Máximo:  B: 12.5",null,null,{"$f":"IF(E33<=12.5,+E33,12.5)","v":0}]
[null,"                                  (1)     LABOR DOCENTE   TOTAL (Máximo  40)                                  ",null,null,{"$f":"IF((+E26+E31+E34)<=40,(+E26+E31+E34),40)","v":0}]
[]
[2,"LABOR DE INVESTIGACIÓN        "]
["2.1","Proyectos de investigación presentados y aprobados por Consejo de Carrera y Honorable Consejo Facultativo, según informe."]
[null,"Puntaje Máximo:  B:   8",null,null,{"$f":"IF(E38<=8,+E38,8)","v":0}]
["2.2","Participación en proyectos de investigación  aprobado por Consejo de Carrera y Honorable Consejo Facultativo."]
[null,"                                                                        Puntaje Máximo:  B:  4",null,null,{"$f":"IF(E40<=4,+E40,4)","v":0}]
["2.3","Evaluación del avance o conclusión del proyecto, según informe del Director del Instituto de Investigación.                                                                     "]
[null,"                                                                        Puntaje Máximo:  B:  28",null,null,{"$f":"IF(E42<=28,+E42,28)","v":0}]
[null,"                       (2)   LABOR DE INVESTIGACIÓN   TOTAL(Máximo 40)",null,null,{"$f":"IF((+E39+E41+E43)<=40,(+E39+E41+E43),40)","v":0}]
[]
[3,"LABOR DE EXTENSIÓN o INTERACCIÓN  "]
["3.1","Proyectos presentados y ejecutados según avance y conclusión y aprobados por          Consejo de Carrera.    "]
[null,"Puntaje Máximo:  B:  12.5",null,null,{"$f":"IF(E47<=12.5,+E47,12.5)","v":0}]
["3.2","Participación en proyectos de extensión, según informe aprobado por el Consejo de Carrera. "]
[null,"Puntaje Máximo:  B:  6 ",null,null,{"$f":"IF(E49<=6,+E49,6)","v":0}]
["3.3","Proyección social de la labor docente, organización de viajes de estudio, participación en Ferias como expositores o jurados, participación en oferta de servicios."]
[null,"Puntaje Máximo:  B:  6.5 ",null,null,{"$f":"IF(E51<=6.5,+E51,6.5)","v":0}]
[null,"                            (3)    LABOR DE EXTENSIÓN   TOTAL (Máximo 20)",null,null,{"$f":"IF((+E48+E50+E52)<=20,(+E48+E50+E52),20)","v":0}]
[]
[4,"PRODUCCIÓN INTELECTUAL"]
["4.1","Por libro editado y/o publicado."]
[null,"Puntaje Máximo:  B:  30 ",null,null,{"$f":"IF(E56<=30,+E56,30)","v":0}]
["4.2","Por guías de curso completo o folletos editados            2 puntos c/u"]
[null,"Puntaje Máximo:  B:  10",null,null,{"$f":"IF(E58<=10,+E58,10)","v":0}]
["4.3","Por artículo científico publicado.                                     "]
[null,"Puntaje Máximo:  B:  5",null,null,{"$f":"IF(E60<=5,+E60,5)","v":0}]
["4.4","Otras publicaciones relacionadas con la Carrera.             "]
[null,"Puntaje Máximo:  B:  1",null,null,{"$f":"IF(E62<=1,+E62,1)","v":0}]
["4.5","Otras producciones.           "]
[null,"Puntaje Máximo:  B:  4",null,null,{"$f":"IF(E64<=4,+E64,4)","v":0}]
[null,"                    (4)  PRODUCCIÓN INTELECTUAL   TOTAL (Máximo 40)",null,null,{"$f":"IF((+E57+E59+E61+E63+E65)<=40,(+E57+E59+E61+E63+E65),40)","v":0}]
[]
[5,"VIDA UNIVERSITARIA"]
["5.1","Por ser Jefe de Área, Jefes de Departamento, Jefes de División"]
[null,"NOTA: El Rector, Vicerrector, Secretario General, DAF, Decanos, Vicedecanos, Directores de Carrera y Directores de Institutos, tienen el máximo puntaje de evaluación.                                                                                          "]
[null,"Puntaje Máximo B:10",null,null,{"$f":"IF(E69<=10,+E69,10)","v":0}]
["5.2","Por ser representante de base ante: \n   - Consejo de Carrera:       2 puntos\n   - Consejo Facultativo:       3 puntos          \n   - Consejo Universitario:     5 puntos"]
[null,"                                                                          Puntaje Máximo: B:  5",null,null,{"$f":"IF(E72<=5,+E72,5)","v":0}]
["5.3","Por integrar en calidad de docente comisiones universitarias."]
[null,"                                                                          Puntaje Máximo: B:  3",null,null,{"$f":"IF(E74<=3,+E74,3)","v":0}]
["5.4","Por ser miembro de uno o más tribunales de exámen de competencia o jurado       electoral.                                                                        Puntaje Máximo: B:  3 "]
[null,"                                                                          Puntaje Máximo: B:  3",null,null,{"$f":"IF(E76<=3,+E76,3)","v":0}]
["5.5","Por asistencia regular a reuniones docente - estudiantil, seminarios, simposios y otros eventos organizados por la Facultad y la Carrera, según informe del Director de Carrera.   "]
[null," Puntaje Máximo: B:  4 ",null,null,{"$f":"IF(E78<=4,+E78,4)","v":0}]
["5.6","Por otro tipo de participación en actividades de co-gobierno."]
[null,"                                                                          Puntaje Máximo: B:  5",null,null,{"$f":"IF(E80<=5,+E80,5)","v":0}]
[null,"  (5)  VIDA UNIVERSITARIA   TOTAL(Máximo 20)   ",null,null,{"$f":"IF((+E71+E73+E75+E77+E79+E81)<=20,(+E71+E73+E75+E77+E79+E81),20)","v":0}]
[]
[6,"CURSOS Y CONFERENCIAS"]
["6.1","Por Título de postgrado :\n   - Doctor (Ph.D.)        10 puntos\n   - Magíster                  8 puntos\n   - Especialista              6 puntos  "]
[null,"NOTA: EL TÍTULO OBTENIDO TIENE VALOR PUNTUABLE PERMANENTE                                                                                         "]
[null," Puntaje Máximo: B:  10 ",null,null,{"$f":"IF(E85<=10,+E85,10)","v":0}]
["6.2","Por la Participación en cursos de actualización con certificado de aprobación:\nDe 40 a 60 horas de carga horaria:          5 puntos.\nMayor de 60 horas de carga horaria:      10 puntos.        "]
[null," Puntaje Máximo: B:  10 ",null,null,{"$f":"IF(E88<=10,+E88,10)","v":0}]
["6.3","Por asistencia a cursos de actualización sin el requisito de la aprobación.        \nCada uno 1 punto "]
[null," Puntaje Máximo: B:  2 ",null,null,{"$f":"IF(E90<=2,+E90,2)","v":0}]
["6.4","Por dirección y/o dictado de cursos extra-cátedra, según informe y duración.   \nCada uno 5 puntos"]
[null," Puntaje Máximo: B:  10 ",null,null,{"$f":"IF(E92<=10,+E92,10)","v":0}]
["6.5","Por Conferencias dictadas o ponencias en simposios o Congresos.                 \nCada uno 3 puntos"]
[null," Puntaje Máximo: B:  9 ",null,null,{"$f":"IF(E94<=9,+E94,9)","v":0}]
[null,"(6)  CURSOS Y CONFERENCIAS  TOTAL(Máximo 20)",null,null,{"$f":"IF((+E95+E93+E91+E89+E87)<=20,(+E95+E93+E91+E89+E87),20)","v":0}]
[]
[null,"                PUNTAJE TOTAL DE EVALUACIÓN (1)+(2)+(3)+(4)+(5)+(6)",null,null,{"$f":"+E35+E44+E53+E66+E82+E96","v":0}]
[]
["Comisión de Evaluación Docente:"]
[]
[]
[]
["Docente:",null,null,"Universitario:"]
[]
[]
[]
["Docente:",null,null,"Universitario:"]
[]
[]
[]
["Docente:",null,null,"Universitario:"]

{"sheet":"EVAL-TIPO-C","index":3,"n_rows":112,"n_cols":5,"rows_kept":112,"cut":false,"hidden":false,"merged":[[20,1,20,4],[12,0,12,1],[12,2,12,4],[13,0,13,1],[21,0,21,4],[46,0,47,0],[70,1,70,3],[68,0,70,0],[52,1,52,3],[53,1,53,3],[54,1,54,3],[31,0,33,0],[25,1,25,3],[26,1,26,3],[39,1,39,3],[40,1,40,3],[31,1,31,3],[32,1,32,3],[34,1,34,3],[35,1,35,3],[36,1,36,3],[38,1,38,3],[66,1,66,3],[67,1,67,3],[93,0,94,0],[112,0,112,2],[112,3,112,4],[103,0,103,1],[103,3,103,4],[104,0,104,2],[104,3,104,4],[107,0,107,1],[107,3,107,4],[108,0,108,2],[108,3,108,4],[111,0,111,1],[111,3,111,4],[93,1,93,3],[94,1,94,3],[95,1,95,3],[96,1,96,3],[97,1,97,3],[87,1,87,3],[91,1,91,3],[72,1,72,3],[73,1,73,3],[74,1,74,3],[71,0,72,0],[90,1,90,3],[76,1,76,3],[78,1,78,3],[84,1,84,3],[85,1,85,3],[86,1,86,3],[89,1,89,3],[73,0,74,0],[75,0,76,0],[77,0,78,0],[75,1,75,3],[79,0,80,0],[87,0,88,0],[84,0,86,0],[89,0,90,0],[91,0,92,0],[88,1,88,3],[1,0,1,4],[2,0,2,4],[3,0,3,4],[8,0,8,4],[30,1,30,3],[33,1,33,3],[29,0,30,0],[37,1,37,3],[42,1,42,3],[41,0,42,0],[16,1,16,4],[17,1,17,4],[18,1,18,4],[27,1,27,3],[28,1,28,3],[29,1,29,3],[13,3,13,4],[15,0,15,4],[6,1,6,3],[9,0,9,1],[9,2,9,4],[10,0,10,1],[4,0,4,2],[19,1,19,4],[47,1,47,3],[62,1,62,3],[64,1,64,3],[59,0,60,0],[61,0,62,0],[63,0,64,0],[55,1,55,3],[56,1,56,3],[57,1,57,3],[58,1,58,3],[59,1,59,3],[61,1,61,3],[63,1,63,3],[65,1,65,3],[48,1,48,3],[49,1,49,3],[51,1,51,3],[48,0,49,0],[50,0,51,0],[55,0,56,0],[57,0,58,0],[60,1,60,3],[68,4,69,4],[10,2,10,4],[0,0,0,3],[92,1,92,3],[77,1,77,3],[79,1,79,3],[80,1,80,3],[81,1,81,3],[82,1,82,3],[83,1,83,3],[68,1,68,3],[71,1,71,3],[39,0,40,0],[41,1,41,3],[43,1,43,3],[44,1,44,3],[45,1,45,3],[46,1,46,3],[50,1,50,3],[23,0,25,0],[22,1,22,3],[23,1,23,3],[24,1,24,3],[69,1,69,3]]}
["ANEXO 1"]
["UNIVERSIDAD MAYOR DE SAN ANDRÉS"]
["CONSEJO ACADÉMICO UNIVERSITARIO"]
["FORMULARIO DE EVALUACIÓN DOCENTE"]
["GESTIÓN A SER EVALUADA:"]
[]
[null,"EVALUACIÓN DOCENTE TIPO: C"]
[]
["*    LLENAR SOLO LOS ESPACIOS SOMBREADOS"]
["FACULTAD: ",null,"CIENCIAS_PURAS_Y_NATURALES"]
["CARRERA:",null,"Carrera de Informática"]
[]
["DOCENTE:"]
["CARGA HORARIA:",null,null,"Horas"]
[]
["ASIGNATURA(S)"]
["1)"]
["2)"]
["3)"]
["4)"]
["5)"]
["NOTA: Cuando el puntaje exceda del establecido para el rubro correspondiente, el formulario regulará a la nota máxima determinada."]
[1,"LABOR DOCENTE                            "]
["1.1","ADMINISTRACIÓN DE LA CÁTEDRA:                "]
[null,"Evalúa el Director de Carrera de acuerdo con el formulario aprobado en el CAU sobre la base del Reglamento de la Evaluación Docente Aprobado mediante Resolución de HCU  (Ver Anexo 2)       "]
[null," Puntaje Máximo:  C:   17.5",null,null,{"$f":"IF(E25<=17.5,+E25,17.5)","v":0}]
["1.2","DEDICACIÓN A LA DOCENCIA:        "]
["1.2.1","Asignatura  (carga horaria de 32 horas/mes)                                        c/u   2 puntos"]
["1.2.2","Por ser profesor tutor de un trabajo de tesis, tesina, trabajo dirigido, proyecto de grado, presentado y aprobado.                                                              c/u  5 puntos"]
["1.2.3","Por ser tribunal de grado en cualquiera de sus modalidades              c/u 3 puntos"]
[null," Puntaje Máximo:  C:   15",null,null,{"$f":"IF((+E28+E29+E30)<=15,(+E28+E29+E30),15)","v":0}]
["1.3","EVALUACIÓN ESTUDIANTIL  "]
[null,"Mediante procedimiento aprobado.              (Ver anexo 3)                                                               "]
[null,"Puntaje Máximo:  C: 17.5",null,null,{"$f":"IF(E33<=17.5,+E33,17.5)","v":0}]
[null,"                                  (1)     LABOR DOCENTE   TOTAL (Máximo  50)                                  ",null,null,{"$f":"IF((+E26+E31+E34)<=50,(+E26+E31+E34),50)","v":0}]
[]
[2,"LABOR DE INVESTIGACIÓN        "]
["2.1","Proyectos de investigación presentados y aprobados por Consejo de Carrera y Honorable Consejo Facultativo, según informe."]
[null," Puntaje Máximo:  C: 6",null,null,{"$f":"IF(E38<=6,+E38,6)","v":0}]
["2.2","Participación en proyectos de investigación  aprobado por Consejo de Carrera y Honorable Consejo Facultativo."]
[null," Puntaje Máximo:  C: 3",null,null,{"$f":"IF(E40<=3,+E40,3)","v":0}]
["2.3","Evaluación del avance o conclusión del proyecto, según informe del Director del Instituto de Investigación.                                                                "]
[null," Puntaje Máximo:  C:  21",null,null,{"$f":"IF(E42<=21,+E42,21)","v":0}]
[null,"                       (2)   LABOR DE INVESTIGACIÓN   TOTAL(Máximo 30)",null,null,{"$f":"IF((+E39+E41+E43)<=30,(+E39+E41+E43),30)","v":0}]
[]
[3,"LABOR DE EXTENSIÓN o INTERACCIÓN  "]
["3.1","Proyectos presentados y ejecutados según avance y conclusión y aprobados por          Consejo de Carrera.   "]
[null," Puntaje Máximo:  C: 15",null,null,{"$f":"IF(E47<=15,+E47,15)","v":0}]
["3.2","Participación en proyectos de extensión, según informe  aprobado por el Consejo de Carrera.  "]
[null," Puntaje Máximo:  C:  7.5",null,null,{"$f":"IF(E49<=7.5,+E49,7.5)","v":0}]
["3.3","Proyección social de la labor docente, organización de viajes de estudio, participación en Ferias como expositores o jurados. "]
[null," Puntaje Máximo:  C:  7.5",null,null,{"$f":"IF(E51<=7.5,+E51,7.5)","v":0}]
[null,"                            (3)    LABOR DE EXTENSIÓN   TOTAL (Máximo 30)",null,null,{"$f":"IF((+E48+E50+E52)<=30,(+E48+E50+E52),30)","v":0}]
[]
[4,"PRODUCCIÓN INTELECTUAL"]
["4.1","Por libro editado y/o publicado."]
[null,"                                                                                            Puntaje Máximo:  C: 30",null,null,{"$f":"IF(E56<=30,+E56,30)","v":0}]
["4.2","Por guías de curso completo o folletos editados  2 puntos c/u"]
[null,"                                                                        Puntaje Máximo: C:  10",null,null,{"$f":"IF(E58<=10,+E58,10)","v":0}]
["4.3","Por artículo científico publicado.    "]
[null,"                                                                        Puntaje Máximo: C:  5",null,null,{"$f":"IF(E60<=5,+E60,5)","v":0}]
["4.4","Otras publicaciones relacionadas con la Carrera.   "]
[null,"                                                                        Puntaje Máximo: C:  1",null,null,{"$f":"IF(E62<=1,+E62,1)","v":0}]
["4.5","Otras producciones.        "]
[null,"                                                                        Puntaje Máximo: C:  4",null,null,{"$f":"IF(E64<=4,+E64,4)","v":0}]
[null,"                    (4)  PRODUCCIÓN INTELECTUAL   TOTAL (Máximo 30)",null,null,{"$f":"IF((+E57+E59+E61+E63+E65)<=30,+E57+E59+E61+E63+E65,30)","v":0}]
[]
[5,"VIDA UNIVERSITARIA"]
["5.1","Por ser Jefe de Área, Jefes de Departamento, Jefes de División"]
[null,"NOTA: El Rector, Vicerrector, Secretario General, DAF, Decanos, Vicedecanos, Directores de Carrera y Directores de Institutos, tienen el máximo puntaje de evaluación.                                                                                          "]
[null," Puntaje Máximo: C:  10",null,null,{"$f":"IF(E69<=10,+E69,10)","v":0}]
["5.2","Por ser representante de base ante: \n   - Consejo de Carrera:       2 puntos  \n   - Consejo Facultativo:       3 puntos          \n   - Consejo Universitario:     5 puntos"]
[null," Puntaje Máximo: C:  5",null,null,{"$f":"IF(E72<=5,+E72,5)","v":0}]
["5.3","Por integrar en calidad de docente comisiones universitarias."]
[null," Puntaje Máximo: C:  3",null,null,{"$f":"IF(E74<=3,+E74,3)","v":0}]
["5.4","Por ser miembro de uno o más tribunales de exámen de competencia o jurado       electoral.                                                                       "]
[null,"                                                                        Puntaje Máximo: C:  3",null,null,{"$f":"IF(E76<=3,+E76,3)","v":0}]
["5.5","Por asistencia regular a reuniones docente - estudiantil, seminarios, simposios y otros eventos organizados por la Facultad y la Carrera, según informe del Director de Carrera.                                                                                  Puntaje Máximo: C: 4"]
[null," Puntaje Máximo: C:  4",null,null,{"$f":"IF(E78<=4,+E78,4)","v":0}]
[5.6,"Por otro tipo de participación en actividades de co-gobierno."]
[null," Puntaje Máximo: C:  5",null,null,{"$f":"IF(E80<=5,+E80,5)","v":0}]
[null,"                                 (5)  VIDA UNIVERSITARIA   TOTAL(Máximo 20)",null,null,{"$f":"IF((+E71+E73+E75+E77+E79+E81)<=20,(+E71+E73+E75+E77+E79+E81),20)","v":0}]
[]
[6,"CURSOS Y CONFERENCIAS"]
["6.1","Por Título de Postgrado :\nDoctor (Ph.D.)        10 puntos\nMagíster                  8 puntos\nEspecialista            6 puntos  "]
[null," Puntaje Máximo: C:   10",null,null,{"$f":"IFERROR(IF(E85<=10,+E85,10),\" \")","v":0}]
[null,"NOTA: EL TÍTULO OBTENIDO TIENE VALOR PUNTUABLE PERMANENTE                                                                                         "]
["6.2","Por la participación en cursos de actualización con certificado de aprobación:\nDe 40 a 60 horas de carga horaria:              5 puntos.\nMayor de 60 horas de carga horaria:          10 puntos.  "]
[null," Puntaje Máximo: C:   10",null,null,{"$f":"IF(E88<=10,+E88,10)","v":0}]
["6.3","Por asistencia a cursos de actualización sin el requisito de la aprobación         \nCada uno 1 punto"]
[null," Puntaje Máximo:  C:   2",null,null,{"$f":"IF(E90<=2,+E90,2)","v":0}]
["6.4","Por dirección y/o dictado de cursos extra-cátedra, según informe y duración.    \nCada uno 5 puntos"]
[null," Puntaje Máximo: C:10",null,null,{"$f":"IF(E92<=10,+E92,10)","v":0}]
["6.5","Por conferencias dictadas o ponencias en simposios o Congresos.                 \nCada uno 3 puntos"]
[null,"Puntaje Máximo: C: 9",null,null,{"$f":"IF(E94<=9,+E94,9)","v":0}]
[null,"                         (6)  CURSOS Y CONFERENCIAS  TOTAL(Máximo 20)",null,null,{"$f":"IF((+E86+E89+E91+E93+E95)<=20,(+E86+E89+E91+E93+E95),20)","v":0}]
[]
[null,"                PUNTAJE TOTAL DE EVALUACIÓN (1)+(2)+(3)+(4)+(5)+(6)",null,null,{"$f":"+E35+E44+E53+E66+E82+E96","v":0}]
[]
["Comisión de Evaluación Docente:"]
[]
[]
[]
["Docente:",null,null,"Universitario:"]
[]
[]
[]
["Docente:",null,null,"Universitario:"]
[]
[]
[]
["Docente:",null,null,"Universitario:"]

{"sheet":"CARGA_HORARIA","index":4,"n_rows":13,"n_cols":2,"rows_kept":13,"cut":false,"hidden":true,"merged":[]}
[]
[]
["CARGA HORARIA"]
[16,"Horas"]
[32,"Horas"]
[48,"Horas"]
[64,"Horas"]
[80,"Horas"]
[96,"Horas"]
[112,"Horas"]
[128,"Horas"]
[144,"Horas"]
[160,"Horas"]

{"sheet":"Hoja1","index":5,"n_rows":11,"n_cols":1,"rows_kept":11,"cut":false,"hidden":true,"merged":[]}
[]
["2015 - 2016"]
["2016 - 2017"]
["2017 - 2018"]
["2018 - 2019"]
["2019 - 2020"]
["2020 - 2021"]
["2021 - 2022"]
["2022 - 2023"]
["2023 - 2024"]
["2024 - 2025"]

{"sheet":"Hoja2","index":6,"n_rows":0,"n_cols":0,"rows_kept":0,"cut":false,"hidden":true,"merged":[]}

{"sheet":"Hoja3","index":7,"n_rows":0,"n_cols":0,"rows_kept":0,"cut":false,"hidden":true,"merged":[]}